bitfinex/quotes_ETHUSD_20240729
["timestamp","ask_amount","ask_price","bid_price","bid_amount"]
[1722233755783,2.36974,3375.9,3375.6,1.075]
[1722233755784,0.709774,3375.9,3375.6,1.075]
[1722233755980,2.36987,3375.7,3375.6,1.075]
[1722233756184,2.36987,3375.7,3375.4,1.075]
[1722233756820,2.36995,3375.6,3375.4,1.075]
[1722233757327,2.36995,3375.6,3374.9,10.47061786]
[1722233757825,2.42927198,3375.5,3374.9,5.73988786]
[1722233757987,6.58988077,3376.2,3374.9,5.73988786]
[1722233757988,2.37009,3375.4,3374.9,5.73988786]
[1722233759533,0.05920198,3375.5,3374.9,5.73988786]
[1722233759534,2.36982,3375.8,3374.9,8.11032786]
[1722233759698,2.36982,3375.8,3375.1,2.37028]
[1722233760033,2.36987,3375.7,3375.1,2.37028]
[1722233760231,5.36974,3375.9,3375.2,2.37022]
[1722233760439,2.36974,3375.9,3375.3,2.37015]
[1722233760743,5.36966,3376.0,3375.3,2.37015]
[1722233760938,2.3584,3376.2,3375.1,5.0258]
[1722233761113,2.493,3376.6,3375.7,2.36983]
[1722233761448,2.493,3376.6,3375.5,8.10988786]
[1722233761449,2.3696,3376.1,3375.5,8.10988786]
[1722233761754,2.36936,3376.5,3375.7,2.36982]
[1722233761995,2.36936,3376.5,3375.9,2.36973]
[1722233762158,2.36922,3376.7,3375.5,8.32388786]
[1722233762603,2.36908,3376.9,3376.2,2.36952]
[1722233762803,2.36882,3377.2,3375.9,2.584]
[1722233763004,2.36882,3377.2,3376.2,2.36951]
[1722233763353,4.76983,3377.4,3376.7,2.36917]
[1722233763506,3.082568,3377.4,3376.7,2.36917]
[1722233764131,2.36873,3377.4,3376.8,2.3691]
[1722233764316,2.36855,3377.6,3376.9,2.36902]
[1722233764804,4.76951,3377.8,3376.9,2.36902]
[1722233764805,2.36862,3377.5,3376.9,2.36902]
[1722233765005,4.76951,3377.8,3376.7,2.36916]
[1722233765006,2.36869,3377.4,3376.7,2.36916]
[1722233765645,5.36857,3377.6,3376.7,2.36916]
[1722233765813,2.36847,3377.7,3377.0,2.36895]
[1722233766139,2.36855,3377.6,3376.8,2.3691]
[1722233766741,4.76951,3377.8,3376.8,2.3691]
[1722233766742,2.36847,3377.7,3377.0,2.36894]
[1722233767511,5.36847,3377.7,3377.0,2.36894]
[1722233767736,2.36861,3377.5,3376.8,2.3691]
[1722233767943,2.42789198,3377.4,3376.4,4.78786]
[1722233768112,2.36887,3377.2,3376.5,2.36931]
[1722233768316,2.36887,3377.2,3376.4,2.4185]
[1722233768317,0.05920198,3377.2,3376.4,4.78788]
[1722233768512,2.36868,3377.4,3376.7,2.36911]
[1722233768862,3.05920198,3377.5,3376.4,2.4185]
[1722233768863,5.36862,3377.5,3376.8,2.36909]
[1722233769356,2.36869,3377.4,3376.6,2.36923]
[1722233769560,2.36875,3377.3,3376.6,2.36923]
[1722233769712,2.36862,3377.5,3376.8,2.3691]
[1722233770211,2.36812,3378.3,3377.3,2.36874]
[1722233770212,2.36826,3378.0,3377.3,2.36874]
[1722233770448,2.4826,3378.3,3377.3,2.36874]
[1722233770449,2.91178567,3378.2,3377.3,2.36874]
[1722233770754,0.05920198,3378.1,3377.1,8.10874786]
[1722233770947,2.36847,3377.8,3377.1,8.10876786]
[1722233771148,2.36869,3377.4,3377.1,5.73988786]
[1722233771308,2.36856,3377.6,3376.7,2.36915]
[1722233771837,0.05920198,3377.5,3376.7,2.36915]
[1722233772050,2.36887,3377.2,3376.6,5.73988786]
[1722233772251,2.36869,3377.4,3376.6,8.10912786]
[1722233772457,2.36869,3377.4,3376.7,2.36917]
[1722233772752,3.0,3377.5,3376.9,2.36903]
[1722233772957,5.36848,3377.7,3377.0,2.36895]
[1722233773160,2.36855,3377.6,3376.8,2.36909]
[1722233773354,3.0,3377.6,3377.0,2.3689]
[1722233773751,2.36848,3377.7,3377.0,2.3689]
[1722233774776,2.36833,3377.9,3377.2,2.36875]
[1722233775071,5.36833,3377.9,3377.2,2.36875]
[1722233775574,2.36841,3377.8,3377.1,2.36888]
[1722233776736,0.48440369,3378.2,3377.2,2.36882]
[1722233777063,2.36826,3378.0,3377.2,2.36882]
[1722233777268,2.36826,3378.0,3377.1,2.4094]
[1722233777468,2.36847,3377.7,3377.1,2.4094]
[1722233777912,2.36856,3377.6,3377.1,2.4094]
[1722233778994,2.36865,3377.5,3376.8,2.3691]
[1722233779326,2.36868,3377.4,3376.8,2.3691]
[1722233779484,0.83352637,3378.0,3376.8,2.3691]
[1722233779485,2.36858,3377.6,3376.8,2.3691]
[1722233779685,2.36858,3377.6,3377.0,2.36896]
[1722233779878,2.36845,3377.8,3377.1,2.36889]
[1722233780200,2.36847,3377.7,3377.1,2.36889]
[1722233780392,2.36854,3377.6,3377.0,2.36896]
[1722233780705,2.36841,3377.8,3377.2,2.36881]
[1722233781305,2.36841,3377.8,3377.1,2.36889]
[1722233781484,2.36847,3377.7,3377.1,2.36889]
[1722233782702,2.36847,3377.7,3376.7,2.3711]
[1722233783005,2.36847,3377.7,3376.8,2.36908]
[1722233783006,2.36868,3377.4,3376.8,2.36908]
[1722233783409,0.05920198,3377.3,3376.6,5.73988786]
[1722233783574,2.42800198,3377.3,3376.7,2.36916]
[1722233783906,4.73906,3377.6,3376.6,5.73988786]
[1722233783907,2.42786198,3377.5,3376.6,5.73988786]
[1722233784207,2.36866,3377.5,3376.9,2.36903]
[1722233784505,3.1090369,3377.5,3376.9,2.36903]
[1722233784904,2.36868,3377.4,3376.7,2.36912]
[1722233785106,2.36868,3377.4,3376.6,8.10909786]
[1722233785485,2.36875,3377.3,3376.6,8.10907786]
[1722233785689,2.36883,3377.2,3376.6,8.10907786]
[1722233785876,0.55388289,3377.3,3376.6,8.10907786]
[1722233786077,0.55388289,3377.3,3376.6,5.73988786]
[1722233786398,2.36894,3377.1,3376.6,5.73988786]
[1722233786577,2.36894,3377.1,3376.6,8.10912786]
[1722233786976,2.36879,3377.3,3376.6,8.10912786]
[1722233787209,2.36855,3377.6,3376.6,5.73988786]
[1722233787612,2.36855,3377.6,3376.8,2.36906]
[1722233787809,3.139925,3377.6,3376.8,2.36906]
[1722233788212,3.139925,3377.6,3376.9,2.36903]
[1722233788530,2.36855,3377.6,3376.8,2.36906]
[1722233788680,2.36855,3377.6,3377.0,2.3689]
[1722233789693,2.36861,3377.5,3377.0,2.3689]
[1722233790317,2.36869,3377.4,3376.8,2.36906]
[1722233790514,2.36854,3377.6,3377.0,2.36896]
[1722233790849,2.36759,3379.0,3377.0,4.63586]
[1722233790850,2.36845,3377.8,3377.0,4.63586]
[1722233791314,2.36845,3377.8,3377.2,2.36882]
[1722233794220,4.13766105,3378.2,3377.2,2.36882]
[1722233794221,2.36825,3378.1,3377.2,2.3688]
[1722233794522,2.36825,3378.1,3377.0,2.2669]
[1722233794523,5.36825,3378.1,3377.0,2.2669]
[1722233794682,2.36825,3378.1,3377.0,2.2669]
[1722233794882,1.07694298,3378.1,3377.0,2.2669]
[1722233795203,2.36838,3377.9,3377.3,2.36874]
[1722233796382,3.0,3378.0,3377.5,2.36859]
[1722233796586,3.0,3378.1,3377.7,2.36842]
[1722233796917,5.36807,3378.3,3377.7,2.36842]
[1722233797082,5.36807,3378.3,3377.5,2.36859]
[1722233797083,0.96286777,3378.2,3377.5,2.36859]
[1722233797280,3.96286777,3378.2,3377.6,2.36854]
[1722233797486,3.90366579,3378.2,3377.6,2.36854]
[1722233797917,6.27179579,3378.2,3377.6,2.36854]
[1722233799921,5.36813,3378.2,3377.6,2.36854]
[1722233800219,2.36813,3378.2,3377.6,2.36854]
[1722233800819,5.3681,3378.3,3377.7,2.36847]
[1722233801922,5.3681,3378.3,3377.3,2.36872]
[1722233801923,0.05920198,3378.2,3377.3,2.36872]
[1722233802233,0.05920198,3378.2,3377.1,5.73988786]
[1722233802234,0.60920198,3378.2,3377.2,2.36878]
[1722233802415,2.36852,3377.7,3377.1,5.73988786]
[1722233802596,2.36852,3377.7,3377.1,8.10877786]
[1722233803023,2.36855,3377.6,3377.1,5.73988786]
[1722233803328,0.53882918,3377.5,3376.7,25.21988786]
[1722233803528,0.53882918,3377.5,3376.7,5.73988786]
[1722233803529,2.36901,3377.0,3376.7,5.73988786]
[1722233804032,2.42810198,3377.1,3376.7,5.73988786]
[1722233804233,2.36896,3377.0,3376.7,5.73988786]
[1722233804594,0.05920198,3377.1,3376.8,2.36906]
[1722233804796,0.05920198,3377.2,3376.8,2.36906]
[1722233805063,0.82020969,3377.2,3376.8,2.36906]
[1722233805243,1.8614679,3377.3,3376.9,2.36903]
[1722233805747,4.2300579,3377.6,3377.0,2.36892]
[1722233806097,5.2957,3377.7,3376.9,2.4658]
[1722233806098,7.23303261,3377.5,3376.9,2.4658]
[1722233806316,2.36861,3377.5,3376.9,2.4658]
[1722233806520,2.36861,3377.5,3376.9,4.83483]
[1722233806708,7.23302694,3377.5,3376.9,4.83483]
[1722233806895,5.36861,3377.5,3376.9,4.83483]
[1722233807835,7.23302694,3377.5,3376.9,4.83483]
[1722233808836,1.86441694,3377.5,3376.9,4.83483]
[1722233809016,4.66417,3377.7,3376.9,4.83483]
[1722233809017,1.86441694,3377.6,3376.9,4.83483]
[1722233809606,4.23429456,3377.6,3376.9,4.83483]
[1722233810293,2.36861,3377.5,3376.9,2.36903]
[1722233810621,4.23435456,3377.5,3376.9,2.36903]
[1722233811437,1.86574456,3377.4,3377.0,2.36895]
[1722233811620,1.86574456,3377.6,3377.1,2.36884]
[1722233812133,5.36845,3377.8,3377.4,2.36867]
[1722233812134,4.86574456,3377.8,3377.4,2.36867]
[1722233812335,1.86574456,3377.8,3377.4,2.36867]
[1722233812801,5.36838,3377.9,3377.2,4.67041]
[1722233813113,1.86573784,3377.8,3377.2,4.67041]
[1722233813321,4.23417784,3377.8,3377.2,4.67041]
[1722233813511,1.86582939,3377.7,3377.2,4.67041]
[1722233814221,4.23426939,3377.8,3377.2,4.67041]
[1722233814533,1.86582939,3377.8,3377.3,2.36875]
[1722233815328,1.86582939,3377.8,3377.4,2.36867]
[1722233815526,1.86582939,3377.8,3377.3,2.36875]
[1722233815527,5.36834,3377.9,3377.3,2.36875]
[1722233815713,1.86583906,3377.8,3377.3,2.36875]
[1722233815919,5.36834,3377.9,3377.3,2.36875]
[1722233816155,4.2341412,3377.9,3377.2,4.67041]
[1722233816354,1.8658012,3377.7,3377.2,4.67041]
[1722233817250,1.8658012,3377.7,3377.2,2.3016]
[1722233817404,2.36871,3377.4,3376.7,10.56165786]
[1722233817606,0.43932104,3377.3,3376.7,10.56165786]
[1722233818451,2.36928,3376.6,3376.2,5.73988786]
[1722233818747,4.77382198,3377.2,3375.8,5.73988786]
[1722233818748,2.36953,3376.2,3375.8,5.73988786]
[1722233818901,2.606553,3376.1,3375.8,5.73988786]
[1722233819102,2.3696,3376.1,3375.8,5.73988786]
[1722233819406,4.23595862,3376.3,3375.8,5.73988786]
[1722233819602,2.36946,3376.3,3375.8,5.73988786]
[1722233819807,5.36946,3376.3,3375.8,5.73988786]
[1722233820337,3.0,3376.3,3375.8,5.73988786]
[1722233820522,3.0,3376.3,3375.8,8.10966786]
[1722233820720,5.36939,3376.4,3375.8,5.73988786]
[1722233820932,8.43098248,3376.4,3375.8,5.73988786]
[1722233821354,5.36939,3376.4,3375.8,5.73988786]
[1722233821513,7.2347686,3376.4,3375.8,5.73988786]
[1722233821713,2.3458,3376.5,3375.8,5.73988786]
[1722233821714,1.8653786,3376.5,3375.8,4.6328]
[1722233821969,2.36929,3376.6,3375.9,2.36968]
[1722233822755,2.36929,3376.6,3376.0,2.36965]
[1722233823144,3.0,3376.7,3375.9,2.36968]
[1722233823145,2.36931,3376.5,3375.9,2.36968]
[1722233823338,2.36931,3376.5,3375.8,2.263]
[1722233823539,2.36931,3376.5,3375.9,2.36973]
[1722233825431,2.36951,3376.3,3375.6,2.36992]
[1722233825647,2.36951,3376.3,3375.7,2.36987]
[1722233826321,2.36964,3376.1,3375.5,5.73988786]
[1722233826517,2.36964,3376.1,3375.2,2.3702]
[1722233826518,0.05920198,3376.0,3375.2,8.11008786]
[1722233826955,2.42892198,3376.0,3375.3,2.37015]
[1722233827252,2.42892198,3376.0,3375.4,2.37008]
[1722233827253,2.36972,3376.0,3375.4,2.37008]
[1722233827443,7.23330877,3376.3,3375.4,2.37008]
[1722233827444,2.3696,3376.1,3375.4,2.37008]
[1722233828425,2.42888198,3376.0,3375.4,2.37008]
[1722233828823,0.05920198,3376.2,3375.2,5.73988786]
[1722233829022,3.0,3376.3,3375.2,5.73988786]
[1722233829221,3.0,3376.6,3375.7,2.36983]
[1722233829543,2.36925,3376.6,3376.0,2.36965]
[1722233829743,5.36925,3376.6,3376.0,2.36965]
[1722233829946,2.36925,3376.6,3376.0,2.36965]
[1722233830523,2.36932,3376.5,3375.8,2.36975]
[1722233830950,2.36932,3376.5,3375.9,2.36973]
[1722233831154,5.36917,3376.7,3376.0,2.36966]
[1722233831357,3.0,3376.7,3376.1,2.36958]
[1722233831528,3.0,3376.7,3376.0,2.36966]
[1722233831529,2.36929,3376.6,3376.0,2.36966]
[1722233831729,2.36931,3376.5,3375.9,2.36972]
[1722233832160,5.36917,3376.7,3376.1,2.36959]
[1722233833155,5.36917,3376.7,3375.9,2.36973]
[1722233833356,2.36925,3376.6,3375.9,2.36973]
[1722233833549,3.0,3376.7,3376.1,2.36954]
[1722233833740,3.0,3376.7,3375.9,2.36973]
[1722233833741,5.36921,3376.7,3375.9,2.36973]
[1722233833936,3.0,3376.7,3376.0,2.36961]
[1722233834344,3.0,3376.7,3375.7,2.36985]
[1722233834345,3.0,3376.7,3376.1,2.36959]
[1722233835554,5.3692,3376.7,3376.1,2.36959]
[1722233835745,6.372501,3376.7,3376.1,2.36959]
[1722233835947,2.36929,3376.6,3375.9,2.36971]
[1722233836462,4.003301,3376.7,3375.9,2.36971]
[1722233836463,2.36931,3376.5,3375.9,2.36971]
[1722233837379,4.003301,3376.7,3375.7,2.36987]
[1722233837380,6.372531,3376.7,3376.0,2.36966]
[1722233837679,2.36925,3376.6,3376.0,2.36966]
[1722233839064,3.53208808,3376.6,3375.8,2.36976]
[1722233839271,3.4728861,3376.6,3375.8,2.36976]
[1722233839645,2.36945,3376.4,3375.6,5.73988786]
[1722233839868,2.36964,3376.1,3375.6,5.73988786]
[1722233840270,2.42884198,3376.1,3375.6,5.73988786]
[1722233841879,3.13407418,3376.1,3375.6,5.73988786]
[1722233842659,3.13407418,3376.1,3375.5,2.37]
[1722233842660,0.76443418,3376.1,3375.5,2.37]
[1722233842863,2.254,3376.2,3375.5,2.37]
[1722233843061,2.42859198,3376.4,3375.7,2.36983]
[1722233843294,2.42859198,3376.4,3375.7,2.36984]
[1722233843460,3.0,3376.5,3375.2,5.73988786]
[1722233843656,2.3696,3376.1,3375.5,2.36997]
[1722233844961,5.36947,3376.3,3375.5,2.36997]
[1722233845160,5.36947,3376.3,3375.3,2.37014]
[1722233845357,2.3665,3376.6,3375.8,2.584]
[1722233845583,2.36913,3376.8,3375.9,2.36972]
[1722233845782,2.36929,3376.6,3375.9,2.36972]
[1722233846295,2.36939,3376.4,3375.7,8.10970786]
[1722233846495,2.36939,3376.4,3375.8,2.3698]
[1722233848475,2.36929,3376.6,3375.9,2.36973]
[1722233848699,3.0,3376.7,3375.9,2.36973]
[1722233848888,4.33649972,3376.7,3375.9,2.36973]
[1722233849208,6.70570972,3376.7,3376.0,2.36966]
[1722233849394,2.3691,3376.8,3376.0,2.36965]
[1722233849568,2.3691,3376.8,3376.1,2.3058]
[1722233850309,2.36884,3377.2,3376.5,2.36927]
[1722233850621,2.2595,3377.6,3376.6,2.584]
[1722233850776,4.62809,3377.6,3376.9,2.36899]
[1722233851118,2.36859,3377.6,3376.9,2.36899]
[1722233852006,2.36859,3377.6,3377.0,2.36895]
[1722233852205,0.473702,3377.5,3377.1,2.36889]
[1722233852424,3.0,3377.7,3377.1,2.36889]
[1722233852626,5.36843,3377.8,3377.1,2.36889]
[1722233853000,5.36843,3377.8,3377.2,2.36881]
[1722233853196,5.36842,3377.8,3376.9,2.36899]
[1722233853502,2.36861,3377.5,3376.9,2.36899]
[1722233855054,2.36861,3377.5,3376.7,4.66405]
[1722233855261,2.36861,3377.5,3376.8,2.36906]
[1722233856101,2.36869,3377.4,3376.7,4.66402]
[1722233856299,0.89227863,3377.5,3376.8,2.3691]
[1722233856536,5.36852,3377.7,3377.1,2.36889]
[1722233856736,5.36852,3377.7,3377.0,2.36892]
[1722233856912,2.36852,3377.7,3377.0,2.36892]
[1722233857929,2.36856,3377.6,3377.0,2.36892]
[1722233859047,3.0,3377.8,3377.1,2.36889]
[1722233859404,2.3685,3377.7,3377.1,2.36889]
[1722233859605,0.999635,3377.6,3377.1,2.36889]
[1722233861119,0.999635,3377.6,3377.2,2.36881]
[1722233861710,0.999635,3377.6,3377.0,2.36891]
[1722233861911,0.999635,3377.6,3377.1,2.36887]
[1722233862254,0.999635,3377.6,3377.2,2.36881]
[1722233862720,5.3684,3377.8,3377.2,2.36881]
[1722233863936,2.36847,3377.7,3377.0,2.36891]
[1722233864249,2.36854,3377.6,3376.9,5.73988786]
[1722233864461,2.36854,3377.6,3377.0,2.36892]
[1722233864759,5.36845,3377.8,3377.1,2.36889]
[1722233864928,3.5542528,3377.7,3377.1,2.36889]
[1722233868354,3.5542528,3377.7,3377.2,2.36882]
[1722233868554,3.5542528,3377.7,3377.1,2.36889]
[1722233872805,3.5542528,3377.7,3376.9,8.10890786]
[1722233872806,1.1857728,3377.7,3377.2,2.36882]
[1722233874014,1.1857728,3377.7,3377.3,2.36871]
[1722233874216,3.0,3377.8,3377.4,2.36868]
[1722233874539,7.62784,3377.9,3377.2,2.36877]
[1722233874870,5.2595,3377.9,3377.2,2.36877]
[1722233875075,0.94884235,3377.8,3377.4,2.36868]
[1722233875370,3.94884235,3377.8,3377.2,2.36877]
[1722233877324,3.94884235,3377.8,3377.0,2.36893]
[1722233877560,2.36847,3377.7,3377.0,2.36893]
[1722233877797,1.09451524,3377.6,3377.0,2.36893]
[1722233878568,1.09451524,3377.6,3377.0,4.73784]
[1722233878885,1.09451524,3377.6,3377.0,2.36891]
[1722233879086,1.09451524,3377.6,3377.1,2.36889]
[1722233881222,1.09451524,3377.6,3377.3,1.076]
[1722233882761,1.86106008,3378.0,3377.6,2.3685]
[1722233883052,1.86106008,3378.6,3377.9,1.076]
[1722233883180,1.86106008,3378.6,3377.3,2.4601]
[1722233883181,1.86106008,3378.8,3378.4,1.076]
[1722233883374,2.3677,3378.8,3378.6,1.076]
[1722233883616,0.42484601,3378.7,3378.6,1.076]
[1722233883794,2.79261601,3378.7,3378.0,2.4601]
[1722233884000,0.42484601,3378.7,3378.3,1.076]
[1722233884354,2.36792,3378.5,3378.3,1.076]
[1722233884689,2.98527578,3378.4,3377.6,5.73988786]
[1722233884884,2.36826,3378.0,3377.6,6.81588786]
[1722233885085,0.05920198,3377.9,3377.6,6.81588786]
[1722233885300,0.05920198,3377.9,3377.6,5.73988786]
[1722233886026,2.42756198,3377.9,3377.6,5.73988786]
[1722233886739,2.42756198,3377.9,3377.0,21.84895]
[1722233886740,0.4795702,3377.9,3377.0,25.21988786]
[1722233886954,2.36854,3377.7,3377.0,27.58882786]
[1722233887241,2.36862,3377.5,3377.0,8.10882786]
[1722233887605,2.36862,3377.5,3377.0,5.73988786]
[1722233889382,2.36852,3377.7,3377.0,8.10884786]
[1722233890125,2.3686,3377.6,3377.0,8.10884786]
[1722233891128,2.36875,3377.3,3377.0,5.73988786]
[1722233896273,2.36875,3377.3,3376.7,2.36917]
[1722233896766,2.36868,3377.4,3376.8,2.36909]
[1722233897865,2.36857,3377.6,3376.9,2.36901]
[1722233898166,2.36864,3377.5,3376.9,2.36901]
[1722233898323,2.36854,3377.6,3377.0,2.36896]
[1722233898917,2.36861,3377.5,3376.8,4.73815]
[1722233899142,2.36861,3377.5,3376.8,2.36905]
[1722233901947,2.36861,3377.5,3376.7,2.36914]
[1722233902762,2.36861,3377.5,3376.8,2.36906]
[1722233903385,2.36861,3377.5,3376.9,2.36903]
[1722233905188,2.36861,3377.5,3376.7,2.36914]
[1722233905189,2.36875,3377.4,3376.7,2.36914]
[1722233905485,2.2502,3377.2,3376.5,5.73988786]
[1722233905683,2.36924,3376.6,3376.5,5.73988786]
[1722233905883,2.36924,3376.6,3376.0,2.36961]
[1722233907279,2.36924,3376.6,3376.1,2.36959]
[1722233908252,2.36924,3376.6,3375.9,27.58959786]
[1722233908448,2.36932,3376.5,3375.9,27.58959786]
[1722233908684,2.42842198,3376.7,3376.0,2.36965]
[1722233908986,2.36925,3376.6,3376.0,2.36965]
[1722233909384,2.36932,3376.5,3376.0,2.36965]
[1722233909585,2.36932,3376.5,3375.9,25.21988786]
[1722233909754,2.36932,3376.5,3375.9,27.58960786]
[1722233910592,2.42844198,3376.7,3376.0,2.36966]
[1722233910789,2.36926,3376.6,3376.0,2.36966]
[1722233911509,2.8489372,3376.7,3376.1,2.36958]
[1722233911656,2.36918,3376.7,3376.1,2.36958]
[1722233911858,2.36916,3376.8,3376.2,2.36952]
[1722233912616,2.36861,3377.5,3376.5,2.2891]
[1722233912817,5.36861,3377.5,3376.5,2.2891]
[1722233912981,0.778281,3377.4,3376.5,2.2891]
[1722233913188,3.778281,3377.4,3376.5,2.2891]
[1722233913407,2.4142,3377.6,3376.5,2.2891]
[1722233913408,2.4142,3377.6,3376.9,2.36898]
[1722233913584,2.36855,3377.6,3376.9,2.36898]
[1722233914085,4.70974,3377.9,3377.2,2.36878]
[1722233914409,2.36841,3377.8,3377.2,2.36878]
[1722233915519,2.36819,3378.1,3377.2,2.3688]
[1722233915733,2.36819,3378.1,3377.5,2.36861]
[1722233916141,2.4323,3378.2,3377.6,2.36853]
[1722233916441,4.80042,3378.2,3377.4,2.36865]
[1722233916581,4.80042,3378.2,3377.3,2.36874]
[1722233917622,4.80042,3378.2,3377.6,2.36853]
[1722233917623,2.4323,3378.2,3377.6,2.36853]
[1722233917798,1.86177178,3378.4,3377.7,2.36841]
[1722233918002,2.36785,3378.6,3377.5,2.3686]
[1722233918003,2.36785,3378.6,3377.6,2.36852]
[1722233918211,2.36791,3378.5,3377.8,2.36833]
[1722233919186,3.0,3378.6,3377.9,2.36832]
[1722233919389,2.36778,3378.7,3377.8,2.36838]
[1722233919617,2.36778,3378.7,3378.1,2.36819]
[1722233919802,2.36778,3378.7,3377.8,2.36838]
[1722233919803,2.36778,3378.7,3377.9,2.36828]
[1722233920216,2.36778,3378.7,3378.0,2.36821]
[1722233921532,2.36784,3378.6,3378.0,2.36821]
[1722233922104,2.36784,3378.6,3377.8,2.36838]
[1722233922289,2.95863718,3378.7,3377.9,2.36832]
[1722233922513,0.05920198,3378.7,3377.9,2.36832]
[1722233922729,2.36785,3378.6,3377.9,2.36832]
[1722233923557,2.36792,3378.5,3377.9,2.36832]
[1722233925649,2.36792,3378.5,3377.6,2.36852]
[1722233925650,2.36792,3378.5,3377.7,2.36843]
[1722233925815,2.36792,3378.5,3377.9,2.36833]
[1722233927330,2.36799,3378.4,3377.8,2.36839]
[1722233931402,2.36799,3378.4,3377.7,2.36847]
[1722233931403,0.05920198,3378.3,3377.7,2.36847]
[1722233931553,2.36845,3377.8,3377.3,5.73988786]
[1722233931878,0.236845,3377.7,3377.3,2.36874]
[1722233932091,2.3683,3378.0,3377.3,2.36874]
[1722233932312,2.3683,3378.0,3377.1,2.36885]
[1722233932450,0.05920198,3377.9,3377.1,2.36885]
[1722233932647,2.36838,3377.9,3377.2,2.36882]
[1722233932850,0.4795882,3377.8,3377.3,2.36869]
[1722233933944,2.3683,3378.0,3377.3,2.36869]
[1722233934146,3.0028,3378.2,3377.5,2.36854]
[1722233934346,5.37097,3378.2,3377.5,2.36857]
[1722233934580,2.3682,3378.1,3377.5,2.36857]
[1722233934790,2.90537,3378.0,3377.4,2.36868]
[1722233935147,0.5371,3378.0,3377.5,2.3686]
[1722233937980,2.36837,3377.9,3377.3,2.3687]
[1722233938188,2.36845,3377.8,3377.1,2.36886]
[1722233938361,2.36847,3377.7,3377.0,2.36894]
[1722233938569,2.36847,3377.7,3377.1,2.36887]
[1722233938802,2.36854,3377.6,3377.1,2.36887]
[1722233939253,2.36854,3377.6,3377.1,3.44487]
[1722233939607,0.527382,3377.8,3377.1,3.44487]
[1722233939608,2.895832,3377.8,3377.1,3.44487]
[1722233939757,2.7176724,3377.7,3377.1,3.44487]
[1722233940233,2.7176724,3377.7,3377.2,2.36882]
[1722233940506,0.5371,3378.0,3377.5,1.076]
[1722233940707,3.5371,3378.0,3377.5,1.076]
[1722233940853,2.36838,3377.9,3377.5,1.076]
[1722233941288,5.90537,3378.0,3377.3,2.3687]
[1722233941453,3.0,3378.0,3377.4,2.36867]
[1722233941656,2.36833,3377.9,3377.2,4.73758]
[1722233941853,2.36833,3377.9,3377.3,2.36874]
[1722233942051,5.36824,3378.1,3377.5,2.36861]
[1722233942362,2.36826,3378.0,3377.5,2.36861]
[1722233942954,3.0,3378.1,3377.5,2.36861]
[1722233943778,5.36823,3378.1,3377.5,2.36861]
[1722233944086,2.36834,3377.9,3377.3,2.36875]
[1722233945088,2.36834,3377.9,3377.1,2.36889]
[1722233945089,2.36834,3377.9,3377.4,2.36868]
[1722233945459,2.36834,3377.9,3377.1,2.36889]
[1722233945460,2.36844,3377.8,3377.1,2.36889]
[1722233945765,2.36841,3377.8,3376.9,8.05008786]
[1722233946078,2.36847,3377.7,3377.1,2.36889]
[1722233946277,2.36841,3377.8,3377.1,2.36889]
[1722233946680,2.9800496,3377.8,3377.1,2.36889]
[1722233947495,2.36847,3377.7,3377.1,2.36889]
[1722233947694,2.36866,3377.5,3376.9,10.41909786]
[1722233947898,2.36866,3377.5,3376.9,8.10889786]
[1722233948398,0.6116396,3377.8,3377.1,2.36886]
[1722233948705,2.36853,3377.7,3376.9,8.10889786]
[1722233948875,2.36861,3377.5,3376.9,8.10889786]
[1722233949200,4.73706,3377.7,3377.0,2.36895]
[1722233949498,2.36853,3377.7,3377.0,2.36895]
[1722233949698,2.36854,3377.6,3377.0,2.36895]
[1722233949854,2.36861,3377.5,3377.0,2.36895]
[1722233950058,2.36861,3377.5,3376.9,5.73988786]
[1722233950461,2.36861,3377.5,3376.9,8.10887786]
[1722233950673,2.36853,3377.7,3376.9,8.10887786]
[1722233950985,0.6116396,3377.8,3377.1,2.36885]
[1722233951320,2.3683,3378.0,3377.4,2.36868]
[1722233951596,2.36845,3377.8,3377.2,2.36881]
[1722233952005,3.27204002,3378.0,3377.3,2.36875]
[1722233952213,2.36833,3377.9,3377.3,2.36875]
[1722233952710,0.90373002,3378.0,3377.1,2.3798]
[1722233952711,2.36841,3377.8,3377.2,2.36878]
[1722233953307,2.36848,3377.7,3377.2,2.36878]
[1722233953513,2.36856,3377.6,3377.0,2.36894]
[1722233953855,2.36856,3377.6,3377.1,2.36889]
[1722233954204,2.36847,3377.7,3377.1,2.36889]
[1722233954638,2.36847,3377.7,3377.0,2.36891]
[1722233955157,4.24541981,3378.1,3377.2,2.36878]
[1722233955342,4.75314,3378.1,3377.4,2.36863]
[1722233955650,2.36827,3378.0,3377.4,2.36863]
[1722233956323,1.86169591,3378.2,3377.3,2.3848]
[1722233956523,2.36816,3378.2,3377.6,2.36852]
[1722233957054,0.05920198,3378.3,3377.7,2.36847]
[1722233957230,0.05920198,3378.3,3377.6,2.36852]
[1722233957231,2.36805,3378.3,3377.6,2.36852]
[1722233958633,4.23025579,3378.3,3377.6,2.36852]
[1722233959142,4.23025579,3378.3,3377.7,2.36847]
[1722233959515,4.23025579,3378.3,3377.3,8.12468786]
[1722233959516,4.23025579,3378.3,3377.8,2.3684]
[1722233959756,2.36822,3378.1,3377.3,10.49340786]
[1722233959967,2.36822,3378.1,3377.5,2.36856]
[1722233960355,4.23206033,3378.3,3377.6,2.3685]
[1722233960551,0.05920198,3378.2,3377.7,2.36845]
[1722233961042,2.36824,3378.1,3377.5,2.36856]
[1722233961640,5.11902307,3378.3,3377.6,2.36853]
[1722233961841,4.23206033,3378.3,3377.7,2.36845]
[1722233962183,1.86400033,3378.4,3377.9,2.36829]